[Event "FIDE Womens Grand Swiss 2023"]
[Site "Douglas/Isle of Man"]
[Date "2023.10.27"]
[Round "3.9"]
[White "Shuvalova, Polina"]
[Black "Narva, Mai"]
[Result "1-0"]
[ECO "B40"]
[WhiteElo "2506"]
[BlackElo "2399"]
[Annotator "ChessBase"]
[PlyCount "83"]
[EventDate "2023.10.04"]
[EventType "swiss"]
[EventCountry "GBR"]
[SourceTitle "playchess.com"]
[Source "ChessBase"]
[SourceQuality "1"]
[TimeControl "40/6000+30:20/3000+30:900+30"]

1. e4 {[%emt 0:10:03]} c5 {[%emt 0:10:13]} 2. Nf3 {[%emt 0:00:09]} e6 {[%emt 0:00:18]} 3. c3 {[%emt 0:00:07]} d5 {[%emt 0:00:17]} 4. e5 {[%emt 0:00:07]} d4 {[%emt 0:00:25]} 5. d3 {[%emt 0:00:07]} Nc6 {[%emt 0:00:16]} 6. g3 {[%emt 0:00:07]} Nge7 {[%emt 0:00:57]} 7. Bg2 {[%emt 0:00:07]} Ng6 {[%emt 0:00:27]} 8. Qe2 {[%emt 0:00:08]} Qc7 {[%emt 0:00:41]} 9. Na3 {[%emt 0:00:16]} Bd7 {[%emt 0:09:39]} 10. Nc4 {[%emt 0:00:21]} b5 {[%emt 0:07:30]} 11. Ncd2 {[%emt 0:01:21]} Rc8 {[%emt 0:02:40]} 12. cxd4 {[%emt 0:00:28]} cxd4 {[%emt 0:04:11]} 13. O-O {[%emt 0:00:14]} Be7 {[%emt 0:04:28]} 14. Re1 {[%emt 0:00:42]} O-O {[%emt 0:05:02]} 15. h4 {[%emt 0:01:40]} f6 {[%emt 0:11:42]} 16. exf6 {[%emt 0:00:37]} gxf6 {[%emt 0:01:27]} 17. h5 {[%emt 0:12:04]} Nh8 {[%emt 0:11:19]} 18. Nxd4 {[%emt 0:03:05]} Nxd4 {[%emt 0:23:54]} 19. Qg4+ {[%emt 0:00:12]} Kf7 {[%emt 0:01:08]} 20. Qxd4 {[%emt 0:00:09]} Bc5 {[%emt 0:00:59]} 21. Qh4 {[%emt 0:04:42]} Rg8 {[%emt 0:00:16]} 22. d4 {[%emt 0:06:21]} Be7 {[%emt 0:00:20]} 23. Nb3 {[%emt 0:01:08]} a5 {[%emt 0:02:14]} 24. Qe4 {[%emt 0:02:08]} f5 {[%emt 0:01:41]} 25. Qd3 {[%emt 0:06:34]} Qc4 {[%emt 0:01:35]} 26. Qe3 {[%emt 0:09:07]} Bg5 {[%emt 0:03:47]} 27. Qe5 {[%emt 0:00:07]} Bf6 {[%emt 0:01:07]} 28. Qd6 {[%emt 0:00:26]} Qc7 {[%emt 0:02:26]} 29. Qa6 {[%emt 0:00:47]} Bc6 {[%emt 0:02:04]} 30. Bf4 {[%emt 0:03:14]} Qxf4 {[%emt 0:01:11]} 31. Bxc6 {[%emt 0:01:09]} Qc7 {[%emt 0:01:09]} 32. Rac1 {[%emt 0:02:21]} Qe7 {[%emt 0:00:28]} 33. Bd5 {[%emt 0:04:26]} Rxc1 {[%emt 0:00:18]} 34. Bxe6+ {[%emt 0:00:18]} Kg7 {[%emt 0:00:15]} 35. Rxc1 {[%emt 0:00:19]} Rd8 {[%emt 0:00:31]} 36. Bxf5 {[%emt 0:01:44]} Nf7 {[%emt 0:00:52]} 37. Qxa5 {[%emt 0:01:36]} Bxd4 {[%emt 0:00:36]} 38. Nxd4 {[%emt 0:01:00]} Rxd4 {[%emt 0:00:06]} 39. Rc7 {[%emt 0:03:35]} Rd1+ {[%emt 0:00:13]} 40. Kg2 {[%emt 0:00:28]} Qd6 {[%emt 0:00:58]} 41. Qc3+ {[%emt 0:50:17]} Kf8 {[%emt 0:50:27]} 42. Rd7 {[%emt 0:01:47]} 1-0

[Event "FIDE Womens Grand Swiss 2023"]
[Site "Douglas/Isle of Man"]
[Date "2023.10.27"]
[Round "3.10"]
[White "Milliet, Sophie"]
[Black "Dronavalli, Harika"]
[Result "1/2-1/2"]
[ECO "C02"]
[WhiteElo "2391"]
[BlackElo "2502"]
[Annotator "ChessBase"]
[PlyCount "88"]
[EventDate "2023.10.04"]
[EventType "swiss"]
[EventCountry "GBR"]
[SourceTitle "playchess.com"]
[Source "ChessBase"]
[SourceQuality "1"]
[TimeControl "40/6000+30:20/3000+30:900+30"]

1. e4 {[%emt 0:10:03]} e6 {[%emt 0:10:11]} 2. d4 {[%emt 0:00:07]} d5 {[%emt 0:00:06]} 3. e5 {[%emt 0:00:08]} c5 {[%emt 0:00:32]} 4. c3 {[%emt 0:00:04]} Nc6 {[%emt 0:00:13]} 5. Nf3 {[%emt 0:00:04]} Bd7 {[%emt 0:00:14]} 6. Be2 {[%emt 0:00:19]} Nge7 {[%emt 0:00:39]} 7. O-O {[%emt 0:04:04]} Nf5 {[%emt 0:01:55]} 8. dxc5 {[%emt 0:04:09]} a5 {[%emt 0:00:48]} 9. Bg5 {[%emt 0:27:55]} Be7 {[%emt 0:09:33]} 10. Bxe7 {[%emt 0:00:17]} Qxe7 {[%emt 0:00:11]} 11. Bd3 {[%emt 0:00:15]} Qxc5 {[%emt 0:04:15]} 12. Bxf5 {[%emt 0:01:51]} exf5 {[%emt 0:00:05]} 13. Na3 {[%emt 0:01:32]} O-O {[%emt 0:05:59]} 14. Nc2 {[%emt 0:00:11]} Rfe8 {[%emt 0:03:15]} 15. Re1 {[%emt 0:01:22]} Re7 {[%emt 0:05:25]} 16. Ncd4 {[%emt 0:04:31]} Rae8 {[%emt 0:00:56]} 17. Nxc6 {[%emt 0:14:28]} bxc6 {[%emt 0:04:05]} 18. Qd2 {[%emt 0:00:32]} Qb6 {[%emt 0:01:52]} 19. Re2 {[%emt 0:00:17]} Bc8 {[%emt 0:06:13]} 20. Qf4 {[%emt 0:00:59]} h6 {[%emt 0:05:22]} 21. h4 {[%emt 0:00:23]} c5 {[%emt 0:02:09]} 22. h5 {[%emt 0:04:14]} Qb5 {[%emt 0:09:54]} 23. Rae1 {[%emt 0:14:18]} Qc4 {[%emt 0:08:26]} 24. g3 {[%emt 0:00:21]} Qxf4 {[%emt 0:03:14]} 25. gxf4 {[%emt 0:00:01]} Be6 {[%emt 0:00:39]} 26. Rd1 {[%emt 0:01:32]} Rb7 {[%emt 0:00:51]} 27. a3 {[%emt 0:07:43]} Reb8 {[%emt 0:03:31]} 28. Rdd2 {[%emt 0:00:03]} Kf8 {[%emt 0:06:11]} 29. Ne1 {[%emt 0:00:38]} Rc7 {[%emt 0:00:45]} 30. Ng2 {[%emt 0:05:34]} Rd7 {[%emt 0:00:46]} 31. Re1 {[%emt 0:00:25]} Rdb7 {[%emt 0:00:37]} 32. Ree2 {[%emt 0:00:03]} Rd7 {[%emt 0:00:14]} 33. Re1 {[%emt 0:00:04]} Ke8 {[%emt 0:04:38]} 34. Kh2 {[%emt 0:04:03]} a4 {[%emt 0:02:41]} 35. Re3 {[%emt 0:01:19]} Rdb7 {[%emt 0:02:16]} 36. Ree2 {[%emt 0:00:01]} Rd7 {[%emt 0:00:28]} 37. Re3 {[%emt 0:00:01]} Rdb7 {[%emt 0:02:55]} 38. Ree2 {[%emt 0:00:06]} Rd8 {[%emt 0:03:23]} 39. Re1 {[%emt 0:02:09]} Kf8 {[%emt 0:01:33]} 40. Re3 {[%emt 0:01:36]} Rdb8 {[%emt 0:02:13]} 41. Ree2 {[%emt 0:50:07]} Rd7 {[%emt 0:50:37]} 42. Re1 {[%emt 0:00:00]} Rb3 {[%emt 0:00:00]} 43. Re3 {[%emt 0:00:00]} Rb8 {[%emt 0:00:00]} 44. Re1 {[%emt 0:00:00]} Rdb7 {[%emt 0:00:00]} 1/2-1/2

[Event "FIDE Womens Grand Swiss 2023"]
[Site "Douglas/Isle of Man"]
[Date "2023.10.27"]
[Round "3.11"]
[White "Hoang, Thanh Trang"]
[Black "Batsiashvili, Nino"]
[Result "1/2-1/2"]
[ECO "A43"]
[WhiteElo "2398"]
[BlackElo "2475"]
[Annotator "ChessBase"]
[PlyCount "75"]
[EventDate "2023.10.04"]
[EventType "swiss"]
[EventCountry "GBR"]
[SourceTitle "playchess.com"]
[Source "ChessBase"]
[SourceQuality "1"]
[TimeControl "40/6000+30:20/3000+30:900+30"]

1. d4 {[%emt 0:10:09]} Nf6 {[%emt 0:10:03]} 2. Nf3 {[%emt 0:00:27]} c5 {[%emt 0:00:09]} 3. d5 {[%emt 0:00:52]} b5 {[%emt 0:00:05]} 4. c3 {[%emt 0:01:19]} b4 {[%emt 0:00:43]} 5. c4 {[%emt 0:12:21]} e6 {[%emt 0:02:51]} 6. dxe6 {[%emt 0:05:23]} dxe6 {[%emt 0:00:14]} 7. Qxd8+ {[%emt 0:01:02]} Kxd8 {[%emt 0:00:01]} 8. g3 {[%emt 0:02:32]} Bb7 {[%emt 0:01:24]} 9. Bg2 {[%emt 0:00:17]} Bd6 {[%emt 0:04:36]} 10. O-O {[%emt 0:02:44]} Ke7 {[%emt 0:00:03]} 11. b3 {[%emt 0:03:17]} a5 {[%emt 0:07:58]} 12. a4 {[%emt 0:01:57]} Nc6 {[%emt 0:07:32]} 13. Bb2 {[%emt 0:02:00]} Rhd8 {[%emt 0:01:27]} 14. Nbd2 {[%emt 0:00:57]} Rd7 {[%emt 0:04:48]} 15. Ng5 {[%emt 0:15:11]} Nd4 {[%emt 0:22:57]} 16. Bxd4 {[%emt 0:05:47]} cxd4 {[%emt 0:02:05]} 17. Bxb7 Rxb7 {[%emt 0:00:00]} 18. Nde4 {[%emt 0:02:48]} h6 {[%emt 0:08:01]} 19. Nxf6 {[%emt 0:01:25]} hxg5 {[%emt 0:00:22]} 20. Ne4 {[%emt 0:01:27]} g4 {[%emt 0:00:29]} 21. Rad1 {[%emt 0:06:14]} Be5 {[%emt 0:00:19]} 22. f4 {[%emt 0:06:23]} gxf3 {[%emt 0:01:34]} 23. exf3 {[%emt 0:00:11]} f5 {[%emt 0:06:52]} 24. Nc5 {[%emt 0:00:17]} Rc7 {[%emt 0:00:06]} 25. Nd3 {[%emt 0:00:12]} Bf6 {[%emt 0:00:02]} 26. f4 {[%emt 0:01:16]} g5 {[%emt 0:00:36]} 27. Rfe1 {[%emt 0:03:19]} Rd8 {[%emt 0:02:11]} 28. Re2 {[%emt 0:00:30]} gxf4 {[%emt 0:06:54]} 29. gxf4 {[%emt 0:00:32]} Rg8+ {[%emt 0:00:18]} 30. Rg2 {[%emt 0:01:41]} Rxg2+ {[%emt 0:00:49]} 31. Kxg2 {[%emt 0:00:08]} Kd6 {[%emt 0:00:00]} 32. Rg1 {[%emt 0:05:09]} Rh7 {[%emt 0:04:01]} 33. Kh1 {[%emt 0:02:11]} Rh6 {[%emt 0:00:06]} 34. Rg8 {[%emt 0:02:52]} Rh3 {[%emt 0:00:54]} 35. Rg3 {[%emt 0:00:14]} Rh6 {[%emt 0:00:03]} 36. Rg8 {[%emt 0:01:00]} Rh3 {[%emt 0:00:15]} 37. Rg3 {[%emt 0:00:08]} Rh6 {[%emt 0:00:20]} 38. Rg8 {[%emt 0:02:31]} 1/2-1/2

[Event "FIDE Womens Grand Swiss 2023"]
[Site "Douglas/Isle of Man"]
[Date "2023.10.27"]
[Round "3.12"]
[White "Tsolakidou, Stavroula"]
[Black "Wagner, Dinara"]
[Result "1-0"]
[ECO "B88"]
[WhiteElo "2385"]
[BlackElo "2461"]
[Annotator "ChessBase"]
[PlyCount "43"]
[EventDate "2023.10.04"]
[EventType "swiss"]
[EventCountry "GBR"]
[SourceTitle "playchess.com"]
[Source "ChessBase"]
[SourceQuality "1"]
[TimeControl "40/6000+30:20/3000+30:900+30"]

1. e4 {[%emt 0:10:04]} c5 {[%emt 0:10:05]} 2. Nf3 {[%emt 0:00:06]} d6 {[%emt 0:00:05]} 3. d4 {[%emt 0:00:17]} cxd4 {[%emt 0:00:04]} 4. Nxd4 {[%emt 0:00:23]} Nf6 {[%emt 0:00:04]} 5. Nc3 {[%emt 0:00:09]} a6 {[%emt 0:00:05]} 6. Bc4 {[%emt 0:00:23]} e6 {[%emt 0:00:12]} 7. a4 {[%emt 0:00:28]} Be7 {[%emt 0:00:13]} 8. O-O {[%emt 0:00:21]} O-O {[%emt 0:00:08]} 9. Be3 {[%emt 0:00:20]} Nc6 {[%emt 0:00:41]} 10. Qe2 {[%emt 0:00:49]} Qc7 {[%emt 0:00:49]} 11. Nxc6 {[%emt 0:04:39]} bxc6 {[%emt 0:00:26]} 12. a5 {[%emt 0:00:33]} c5 {[%emt 0:01:20]} 13. Rfd1 {[%emt 0:09:34]} Bb7 {[%emt 0:04:06]} 14. Bf4 {[%emt 0:01:45]} Qc6 {[%emt 0:02:24]} 15. f3 {[%emt 0:17:53]} Rfd8 {[%emt 0:06:49]} 16. Na4 {[%emt 0:10:37]} Nd7 {[%emt 0:18:33]} 17. Bd5 {[%emt 0:04:44]} exd5 {[%emt 0:15:26]} 18. exd5 {[%emt 0:00:21]} Qb5 {[%emt 0:05:36]} 19. Qxe7 {[%emt 0:00:15]} Qxa5 {[%emt 0:12:03]} 20. c4 {[%emt 0:10:46]} Qb4 {[%emt 0:13:12]} 21. Bxd6 {[%emt 0:00:35]} Rac8 {[%emt 0:00:23]} 22. Bc7 {[%emt 0:00:52]} 1-0

[Event "FIDE Womens Grand Swiss 2023"]
[Site "Douglas/Isle of Man"]
[Date "2023.10.27"]
[Round "3.13"]
[White "Tania, Sachdev"]
[Black "Efroimski, Marsel"]
[Result "0-1"]
[ECO "D37"]
[WhiteElo "2389"]
[BlackElo "2447"]
[Annotator "ChessBase"]
[PlyCount "92"]
[EventDate "2023.10.04"]
[EventType "swiss"]
[EventCountry "GBR"]
[SourceTitle "playchess.com"]
[Source "ChessBase"]
[SourceQuality "1"]
[TimeControl "40/6000+30:20/3000+30:900+30"]

1. d4 {[%emt 0:10:37]} Nf6 {[%emt 0:10:05]} 2. c4 {[%emt 0:00:30]} e6 {[%emt 0:00:04]} 3. Nf3 {[%emt 0:00:04]} d5 {[%emt 0:00:04]} 4. Nc3 {[%emt 0:00:04]} Be7 {[%emt 0:00:04]} 5. Qc2 {[%emt 0:04:17]} c5 {[%emt 0:00:10]} 6. dxc5 {[%emt 0:09:43]} d4 {[%emt 0:00:05]} 7. Nb5 {[%emt 0:00:02]} Bxc5 {[%emt 0:00:13]} 8. Bf4 {[%emt 0:03:25]} O-O {[%emt 0:00:05]} 9. O-O-O {[%emt 0:20:03]} Qe7 {[%emt 0:00:30]} 10. Nbxd4 {[%emt 0:09:36]} Bxd4 {[%emt 0:00:09]} 11. Rxd4 {[%emt 0:00:10]} Nc6 {[%emt 0:00:03]} 12. Bd6 {[%emt 0:09:15]} Nxd4 {[%emt 0:00:07]} 13. Bxe7 {[%emt 0:00:02]} Nxc2 {[%emt 0:00:05]} 14. Bxf8 {[%emt 0:00:04]} Kxf8 {[%emt 0:00:09]} 15. Kxc2 {[%emt 0:00:04]} Ng4 {[%emt 0:00:04]} 16. g3 {[%emt 0:02:47]} Nxf2 {[%emt 0:08:13]} 17. Rg1 {[%emt 0:00:04]} b6 {[%emt 0:16:50]} 18. Ne5 {[%emt 0:05:31]} Bb7 {[%emt 0:02:20]} 19. Bg2 {[%emt 0:01:29]} Bxg2 {[%emt 0:00:34]} 20. Rxg2 {[%emt 0:00:04]} Ne4 {[%emt 0:00:12]} 21. b3 {[%emt 0:04:34]} Rc8 {[%emt 0:04:15]} 22. Kb2 {[%emt 0:02:28]} Ke7 {[%emt 0:08:18]} 23. Nd3 {[%emt 0:04:37]} g5 {[%emt 0:04:05]} 24. Rg1 {[%emt 0:02:29]} h5 {[%emt 0:03:58]} 25. Rc1 {[%emt 0:03:59]} f6 {[%emt 0:10:42]} 26. b4 {[%emt 0:04:06]} a5 {[%emt 0:04:23]} 27. bxa5 {[%emt 0:03:36]} bxa5 {[%emt 0:00:06]} 28. Ka3 {[%emt 0:00:03]} Kd6 {[%emt 0:03:05]} 29. Ka4 {[%emt 0:02:06]} Nc5+ {[%emt 0:06:58]} 30. Kxa5 {[%emt 0:03:45]} Ra8+ {[%emt 0:07:02]} 31. Kb5 {[%emt 0:00:39]} Nxd3 {[%emt 0:00:05]} 32. exd3 {[%emt 0:02:29]} Rxa2 {[%emt 0:00:04]} 33. c5+ {[%emt 0:01:22]} Kd7 {[%emt 0:00:28]} 34. c6+ {[%emt 0:02:49]} Kc7 {[%emt 0:00:11]} 35. Re1 {[%emt 0:00:12]} Rb2+ {[%emt 0:01:09]} 36. Ka5 {[%emt 0:00:12]} e5 {[%emt 0:00:20]} 37. Rf1 {[%emt 0:00:07]} Kxc6 {[%emt 0:01:07]} 38. Rxf6+ {[%emt 0:00:04]} Kc5 {[%emt 0:03:46]} 39. Ka4 {[%emt 0:00:05]} Rxh2 {[%emt 0:00:14]} 40. Rf5 {[%emt 0:00:25]} g4 {[%emt 0:00:18]} 41. Rxe5+ {[%emt 0:52:10]} Kd4 {[%emt 0:50:06]} 42. Rf5 {[%emt 0:00:00]} Kxd3 {[%emt 0:00:00]} 43. Kb4 {[%emt 0:00:00]} Ke4 {[%emt 0:00:00]} 44. Rf4+ {[%emt 0:00:00]} Ke3 {[%emt 0:00:00]} 45. Rf5 {[%emt 0:00:00]} h4 {[%emt 0:00:00]} 46. gxh4 {[%emt 0:00:00]} g3 {[%emt 0:00:00]} 0-1

[Event "FIDE Womens Grand Swiss 2023"]
[Site "Douglas/Isle of Man"]
[Date "2023.10.27"]
[Round "3.14"]
[White "Cramling, Pia"]
[Black "Fataliyeva, Ulviyya"]
[Result "0-1"]
[ECO "E05"]
[WhiteElo "2446"]
[BlackElo "2393"]
[Annotator "ChessBase"]
[PlyCount "80"]
[EventDate "2023.10.04"]
[EventType "swiss"]
[EventCountry "GBR"]
[SourceTitle "playchess.com"]
[Source "ChessBase"]
[SourceQuality "1"]
[TimeControl "40/6000+30:20/3000+30:900+30"]

1. d4 {[%emt 0:10:03]} Nf6 {[%emt 0:10:04]} 2. c4 {[%emt 0:00:09]} e6 {[%emt 0:00:05]} 3. Nf3 {[%emt 0:00:21]} d5 {[%emt 0:00:07]} 4. g3 {[%emt 0:00:35]} Be7 {[%emt 0:00:05]} 5. Bg2 {[%emt 0:00:18]} O-O {[%emt 0:00:06]} 6. O-O {[%emt 0:00:23]} dxc4 {[%emt 0:00:05]} 7. Qc2 {[%emt 0:00:27]} a6 {[%emt 0:00:04]} 8. a4 {[%emt 0:00:41]} Bd7 {[%emt 0:00:11]} 9. Qxc4 {[%emt 0:02:36]} Bc6 {[%emt 0:00:03]} 10. Bg5 {[%emt 0:03:34]} Nbd7 {[%emt 0:00:06]} 11. Nc3 {[%emt 0:01:42]} a5 {[%emt 0:00:04]} 12. Rfd1 {[%emt 0:07:29]} h6 {[%emt 0:00:05]} 13. Bxf6 {[%emt 0:00:48]} Nxf6 {[%emt 0:00:05]} 14. Ne5 {[%emt 0:05:37]} Bxg2 {[%emt 0:00:05]} 15. Kxg2 {[%emt 0:00:08]} c6 {[%emt 0:00:03]} 16. Qb3 {[%emt 0:00:39]} Rb8 {[%emt 0:00:12]} 17. Rac1 {[%emt 0:00:43]} Bb4 {[%emt 0:00:28]} 18. e3 {[%emt 0:04:38]} Qe7 {[%emt 0:01:58]} 19. Nd3 {[%emt 0:04:40]} Bd6 {[%emt 0:05:34]} 20. e4 {[%emt 0:08:02]} e5 {[%emt 0:14:56]} 21. dxe5 {[%emt 0:07:03]} Bxe5 {[%emt 0:00:15]} 22. Nxe5 {[%emt 0:01:12]} Qxe5 {[%emt 0:00:05]} 23. f4 {[%emt 0:00:59]} Qh5 {[%emt 0:05:13]} 24. h3 {[%emt 0:06:11]} b5 {[%emt 0:00:19]} 25. axb5 {[%emt 0:15:34]} cxb5 {[%emt 0:00:57]} 26. Qc2 {[%emt 0:01:17]} Rfe8 {[%emt 0:12:39]} 27. e5 {[%emt 0:03:48]} b4 {[%emt 0:04:06]} 28. Na4 {[%emt 0:01:36]} g5 {[%emt 0:24:53]} 29. Rd2 {[%emt 0:07:57]} gxf4 {[%emt 0:03:25]} 30. gxf4 {[%emt 0:06:56]} Kh8 {[%emt 0:00:09]} 31. Qc6 {[%emt 0:05:27]} Rg8+ {[%emt 0:05:03]} 32. Kf2 {[%emt 0:00:05]} Qh4+ {[%emt 0:02:49]} 33. Ke2 {[%emt 0:00:55]} Nh7 {[%emt 0:01:52]} 34. Rf1 {[%emt 0:00:47]} Qxh3 {[%emt 0:00:46]} 35. Rf2 {[%emt 0:00:52]} Rg3 {[%emt 0:00:52]} 36. Qe4 {[%emt 0:03:12]} Qg4+ {[%emt 0:08:07]} 37. Ke1 {[%emt 0:00:09]} Ng5 {[%emt 0:00:54]} 38. Qc6 {[%emt 0:01:08]} Rg1+ {[%emt 0:00:35]} 39. Rf1 {[%emt 0:00:03]} Nf3+ {[%emt 0:00:25]} 40. Qxf3 {[%emt 0:00:19]} Qxf3 {[%emt 0:00:09]} 0-1

[Event "FIDE Womens Grand Swiss 2023"]
[Site "Douglas/Isle of Man"]
[Date "2023.10.27"]
[Round "3.15"]
[White "Gunina, Valentina"]
[Black "Beydullayeva, Govhar"]
[Result "1/2-1/2"]
[ECO "D37"]
[WhiteElo "2439"]
[BlackElo "2383"]
[Annotator "ChessBase"]
[PlyCount "74"]
[EventDate "2023.10.04"]
[EventType "swiss"]
[EventCountry "GBR"]
[SourceTitle "playchess.com"]
[Source "ChessBase"]
[SourceQuality "1"]
[TimeControl "40/6000+30:20/3000+30:900+30"]

1. d4 {[%emt 0:10:06]} Nf6 {[%emt 0:10:06]} 2. c4 {[%emt 0:00:09]} e6 {[%emt 0:00:03]} 3. Nf3 {[%emt 0:00:18]} d5 {[%emt 0:00:04]} 4. Nc3 {[%emt 0:00:16]} Be7 {[%emt 0:00:24]} 5. Bf4 {[%emt 0:00:34]} O-O {[%emt 0:00:30]} 6. e3 {[%emt 0:01:01]} Nbd7 {[%emt 0:01:04]} 7. c5 {[%emt 0:00:24]} Nh5 {[%emt 0:01:00]} 8. Bd3 {[%emt 0:00:40]} Nxf4 {[%emt 0:00:10]} 9. exf4 {[%emt 0:00:02]} b6 {[%emt 0:01:30]} 10. b4 {[%emt 0:00:42]} a5 {[%emt 0:00:16]} 11. a3 {[%emt 0:00:12]} c6 {[%emt 0:00:19]} 12. O-O {[%emt 0:00:11]} Ba6 {[%emt 0:00:05]} 13. Bxa6 {[%emt 0:05:30]} Rxa6 {[%emt 0:00:04]} 14. Qe2 {[%emt 0:00:07]} Qa8 {[%emt 0:03:43]} 15. Rab1 {[%emt 0:01:00]} axb4 {[%emt 0:02:56]} 16. axb4 {[%emt 0:00:08]} Ra3 {[%emt 0:01:17]} 17. Rfc1 {[%emt 0:03:05]} Bf6 {[%emt 0:04:05]} 18. Qe1 {[%emt 0:13:41]} bxc5 {[%emt 0:25:59]} 19. bxc5 {[%emt 0:00:18]} Rb8 {[%emt 0:00:05]} 20. Ne2 {[%emt 0:04:22]} h6 {[%emt 0:08:09]} 21. h3 {[%emt 0:03:43]} Qa4 {[%emt 0:04:34]} 22. Rxb8+ {[%emt 0:01:53]} Nxb8 {[%emt 0:00:03]} 23. f5 {[%emt 0:01:05]} exf5 {[%emt 0:08:18]} 24. Ng3 {[%emt 0:00:09]} Nd7 {[%emt 0:05:28]} 25. Nxf5 {[%emt 0:00:16]} Nf8 {[%emt 0:01:41]} 26. Ne5 {[%emt 0:01:21]} Ne6 {[%emt 0:04:07]} 27. Nxf7 {[%emt 0:09:34]} Kxf7 {[%emt 0:02:39]} 28. Nd6+ {[%emt 0:00:06]} Ke7 {[%emt 0:00:03]} 29. Rb1 {[%emt 0:00:09]} Rb3 {[%emt 0:00:08]} 30. Ra1 {[%emt 0:16:57]} Ra3 {[%emt 0:00:11]} 31. Rb1 {[%emt 0:04:25]} Rb3 {[%emt 0:00:17]} 32. Rd1 {[%emt 0:12:17]} Qb4 {[%emt 0:09:03]} 33. Nc8+ {[%emt 0:03:20]} Kd7 {[%emt 0:01:17]} 34. Nb6+ {[%emt 0:00:07]} Ke7 {[%emt 0:00:05]} 35. Nc8+ {[%emt 0:00:17]} Kd7 {[%emt 0:00:16]} 36. Nb6+ {[%emt 0:00:10]} Ke7 {[%emt 0:00:08]} 37. Nc8+ {[%emt 0:00:07]} Kd7 {[%emt 0:00:09]} 1/2-1/2